fUSD/lending_fUSD_20250415
["ID","MTS","AMOUNT","RATE_DAILY","PERIOD"]
[358123860,1744755828459,-500.0,0.00017985,2]
[358123861,1744755828481,-500.0,0.00017985,2]
[358123862,1744755828503,-500.0,0.00017985,2]
[358123863,1744755828527,-500.0,0.00017985,2]
[358123864,1744755828549,-6148.2911267,0.00017986,2]
[358123865,1744755828571,-3054.2340637,0.00017986,2]
[358123866,1744755828595,-32517.4166481,0.00017986,2]
[358123867,1744755828619,-419.6738862,0.00017986,2]
[358123868,1744755828642,-616.9920127,0.00017986,2]
[358123869,1744755828664,-19850.5818765,0.00017986,2]
[358123870,1744755828688,-109267.3652948,0.00017986,2]
[358123871,1744755828711,-162.06062462,0.00017986,2]
[358123872,1744755828734,-500.0,0.00017987,2]
[358123873,1744755828757,-500.0,0.00017987,2]
[358123874,1744755828780,-500.0,0.00017987,2]
[358123875,1744755828803,-500.0,0.00017987,2]
[358123876,1744755828826,-301.47,0.00017987,2]
[358123877,1744755828848,-500.0,0.00017987,2]
[358123878,1744755828870,-500.0,0.00017987,2]
[358123879,1744755828891,-500.0,0.00017987,2]
[358123880,1744755828913,-500.0,0.00017987,2]
[358123881,1744755828935,-500.0,0.00017987,2]
[358123882,1744755828957,-515.87835491,0.00017987,2]
[358123883,1744755828980,-500.0,0.00017987,2]
[358123884,1744755829002,-500.0,0.00017987,2]
[358123885,1744755829026,-500.0,0.00017987,2]
[358123886,1744755829047,-500.0,0.00017987,2]
[358123887,1744755829068,-500.0,0.00017987,2]
[358123888,1744755829094,-500.0,0.00017987,2]
[358123889,1744755829118,-500.0,0.00017987,2]
[358123890,1744755829142,-500.0,0.00017987,2]
[358123891,1744755829165,-500.0,0.00017987,2]
[358123892,1744755829189,-500.0,0.00017987,2]
[358123893,1744755829211,-500.0,0.00017987,2]
[358123894,1744755829234,-500.0,0.00017987,2]
[358123895,1744755829257,-500.0,0.00017987,2]
[358123896,1744755829281,-500.0,0.00017987,2]
[358123897,1744755829305,-500.0,0.00017987,2]
[358123898,1744755829328,-500.0,0.00017987,2]
[358123899,1744755829349,-504.5930849,0.00017987,2]
[358123900,1744755829370,-500.0,0.00017987,2]
[358123901,1744755829392,-500.0,0.00017987,2]
[358123902,1744755829412,-514.23927904,0.00017987,2]
[358123903,1744755829433,-178.71,0.00017987,2]
[358123904,1744755829453,-509.06263834,0.00017987,2]
[358123905,1744755829474,-514.04770604,0.00017987,2]
[358123906,1744755829495,-521.95971181,0.00017987,2]
[358123907,1744755829514,-255.45,0.00017987,2]
[358123908,1744755829534,-524.96097962,0.00017987,2]
[358123909,1744755829553,-204.64,0.00017987,2]
[358123910,1744755829575,-500.0,0.00017987,2]
[358123911,1744755829597,-382.55,0.00017987,2]
[358123912,1744755829620,-500.0,0.00017987,2]
[358123913,1744755829642,-500.0,0.00017987,2]
[358123914,1744755829664,-528.28216689,0.00017987,2]
[358123915,1744755829686,-255.1,0.00017987,2]
[358123916,1744755829708,-500.0,0.00017987,2]
[358123917,1744755829730,-510.58422793,0.00017987,2]
[358123918,1744755829754,-500.0,0.00017987,2]
[358123919,1744755829776,-440.81817929,0.00017987,2]
[358123920,1744755829799,-500.0,0.00017987,2]
[358123921,1744755829821,-500.0,0.00017987,2]
[358123922,1744755829843,-556.04457897,0.00017987,2]
[358123923,1744755829864,-565.58085776,0.00017987,2]
[358123924,1744755829888,-500.0,0.00017987,2]
[358123925,1744755829908,-565.11924953,0.00017987,2]
[358123926,1744755829927,-500.0,0.00017987,2]
[358123927,1744755829945,-213.38,0.00017987,2]
[358123928,1744755829962,-500.0,0.00017987,2]
[358123929,1744755829981,-168.47,0.00017987,2]
[358123930,1744755830002,-500.0,0.00017987,2]
[358123931,1744755830025,-531.34235792,0.00017987,2]
[358123932,1744755830046,-235.31,0.00017987,2]
[358123933,1744755830066,-229.35618156,0.00017987,2]
[358123934,1744755830092,-150.0,0.00017987,2]
[358123935,1744755830115,-500.0,0.00017987,2]
[358123936,1744755830137,-530.06099091,0.00017987,2]
[358123937,1744755830158,-531.71047354,0.00017987,2]
[358123938,1744755830180,-500.0,0.00017987,2]
[358123939,1744755830202,-5883.2256134,0.00017988,2]
[358123940,1744755830222,-5618.1601002,0.00017988,2]
[358123941,1744755830243,-2922.5597329,0.00017988,2]
[358123942,1744755830263,-2790.8854021,0.00017988,2]
[358123943,1744755830285,-40228.7785318,0.00017988,2]
[358123944,1744755830307,-47940.1404155,0.00017988,2]
[358123945,1744755830328,-519.1976966,0.00017988,2]
[358123946,1744755830349,-618.721507,0.00017988,2]
[358123947,1744755830370,-616.9920127,0.00017988,2]
[358123948,1744755830392,-616.9920127,0.00017988,2]
[358123949,1744755830641,-15924.6225084,0.00017988,2]
[358123950,1744755830666,-11998.6631403,0.00017988,2]
[358123951,1744755830700,-87654.7201161,0.00017988,2]
[358123952,1744755830726,-66042.0749373,0.00017988,2]
[358123953,1744755830753,-151.0,0.00017989,2]
[358123954,1744755830782,-668.65185757,0.00017989,2]
[358123955,1744755830810,-207.4,0.00017989,2]
[358123956,1744755830835,-162.380719,0.00017989,2]
[358123957,1744755830862,-300.0,0.00017999,2]
[358123958,1744755830885,-300.0,0.00017999,2]
[358123959,1744755830907,-151.0,0.00017999,2]
[358123960,1744755830930,-500.0,0.00017999,2]
[358123961,1744755830953,-300.0,0.00017999,2]
[358123962,1744755830975,-500.0,0.00017999,2]
[358123963,1744755830997,-500.0,0.00017999,2]
[358123964,1744755831022,-300.0,0.00017999,2]
[358123965,1744755831044,-500.0,0.00017999,2]
[358123966,1744755831067,-300.0,0.00017999,2]
[358123967,1744755831092,-500.0,0.00017999,2]
[358123968,1744755831115,-666.0,0.00017999,2]
[358123969,1744755831140,-500.0,0.00017999,2]
[358123970,1744755831162,-500.0,0.00017999,2]
[358123971,1744755831185,-500.0,0.00017999,2]
[358123972,1744755831208,-485.85,0.00017999,2]
[358123973,1744755831230,-376.14,0.00017999,2]
[358123974,1744755831252,-270.52,0.00017999,2]
[358123975,1744755831278,-591.28,0.00017999,2]
[358123976,1744755831300,-300.0,0.00017999,2]
[358123977,1744755831322,-500.0,0.00017999,2]
[358123978,1744755831344,-535.14,0.00017999,2]
[358123979,1744755831366,-336.58619298,0.00017999,2]
[358123980,1744755831388,-742.0,0.00017999,2]
[358123981,1744755831412,-423123.95472462,0.00018,2]
[358123982,1744755831432,-153.472,0.00018,2]
[358123983,1744755831453,-1288.0,0.00018,2]
[358123984,1744755831474,-1328.0,0.00018,2]
[358123985,1744755831495,-2047.0,0.00018,2]
[358123986,1744755831517,-791.0,0.00018,2]
[358123987,1744755831538,-907.0,0.00018,2]
[358123988,1744755831559,-1438.0,0.00018,2]
[358123989,1744755831580,-545.0,0.00018,2]
[358123990,1744755831602,-1280.0,0.00018,2]
[358123991,1744755831623,-656.988,0.00018,2]
[358123992,1744755831644,-4147.0,0.00018,2]
[358123993,1744755831666,-152.0,0.00018,2]
[358123994,1744755831687,-678.398,0.00018,2]
[358123995,1744755831709,-3965.0,0.00018,2]
[358123996,1744755831730,-1123.0,0.00018,2]
[358123997,1744755831754,-1411542.6342467,0.00018,2]
[358123998,1744755862408,700.0,0.000172,6]
[358123999,1744755864526,1400.0,0.000173,6]
[358124000,1744755866614,2200.0,0.000174,6]
[358124001,1744755868727,2900.0,0.000175,6]
[358124002,1744755870831,3700.0,0.000176,6]
[358124003,1744755873128,700.0,0.000177,6]
[358124004,1744755875064,700.0,0.000178,6]
[358124005,1744755877157,700.0,0.000179,6]
[358124006,1744755897521,518.64,0.00016958,2]
[358124007,1744755899379,200.0,0.00016896,7]
[358124008,1744755905330,6276.37,0.00017,2]
[358124009,1744755992249,165.3,0.00016896,2]
[358124010,1744755993419,500.0,0.00016932,2]
[358124011,1744756005206,161.5,0.00016923,2]
[358124012,1744756021084,1927.8,0.00016896,2]
[358124013,1744756047776,2000.0,0.00016896,2]
[358124016,1744756072209,150.0,0.00016896,2]
[358124017,1744756073527,423.8,0.00016876,2]
[358124021,1744756165681,250.0,0.00017,2]
[358124022,1744756181348,200.0,0.0001684,2]
[358124026,1744756205735,250.0,0.00017,2]
[358124027,1744756217395,1300.6,0.00016896,2]
[358124041,1744756231757,-199.69442101,0.00017632,2]
[358124042,1744756231768,-323.69142455,0.00017696,2]
[358124043,1744756231780,-2066.19471654,0.00017696,2]
[358124044,1744756231790,-150.0,0.00017732,2]
[358124045,1744756231799,-150.0,0.00017734,2]
[358124046,1744756231809,-150.0,0.00017752,2]
[358124047,1744756231818,-302.4797,0.00017753,2]
[358124048,1744756231828,-1508.1409,0.00017753,2]
[358124049,1744756231837,-1538.77532034,0.00017756,2]
[358124050,1744756231849,-307.00192807,0.00017756,2]
[358124051,1744756231860,-544.10889269,0.00017756,2]
[358124052,1744756231870,-150.0,0.00017756,2]
[358124053,1744756231880,-150.0,0.00017761,2]
[358124054,1744756231889,-150.0,0.00017787,2]
[358124055,1744756231899,-300.0,0.00017793,2]
[358124056,1744756231908,-204.269676,0.00017793,2]
[358124057,1744756231921,-95.730324,0.00017793,2]
[358124058,1744756231930,-1722.89180707,0.00017794,2]
[358124059,1744756231941,-1771.45420964,0.00017794,2]
[358124060,1744756231953,-662.02854974,0.00017794,2]
[358124061,1744756231965,-13207.9113103,0.00017794,2]
[358124062,1744756231974,-973.1371,0.00017795,2]
[358124063,1744756231984,-3912.4342,0.00017796,2]
[358124064,1744756231993,-8189.21,0.00017799,2]
[358124065,1744756232003,-150.99,0.00017799,2]
[358124066,1744756232013,-550.0,0.00017799,2]
[358124067,1744756232022,-6780.37086417,0.000178,2]
[358124068,1744756232034,-763.80750601,0.000178,2]
[358124126,1744756234763,-820.35043366,0.000178,2]
[358124127,1744756235028,-757.8900005,0.000178,2]
[358124128,1744756235040,-11142.18751643,0.000178,2]
[358124129,1744756235052,-2560.78427923,0.000178,2]
[358124130,1744756235062,-547.2377,0.000178,2]
[358124131,1744756235071,-157.2123,0.000178,2]
[358124132,1744756235081,-364.9361,0.000178,2]
[358124133,1744756235091,-2128.4123,0.000178,2]
[358124134,1744756235100,-150.99,0.000178,2]
[358124135,1744756235109,-999.99,0.000178,2]
[358124136,1744756235119,-1490.43735077,0.00017806,2]
[358124137,1744756235130,-9978.93219414,0.00017806,2]
[358124138,1744756235142,-5894.91633178,0.00017806,2]
[358124139,1744756235151,-150.0,0.0001781,2]
[358124140,1744756235161,-17364.28587669,0.00017818,2]
[358124141,1744756235170,-207.158218,0.0001782,2]
[358124142,1744756235179,-17364.28587669,0.00017829,2]
[358124143,1744756235188,-150.0,0.00017838,2]
[358124144,1744756235399,-17364.28587669,0.00017841,2]
[358124145,1744756235408,-17364.28587669,0.00017853,2]
[358124146,1744756235418,-759.42,0.00017855,2]
[358124147,1744756235428,-35694.08396015,0.00017856,2]
[358124148,1744756235438,-17364.28587669,0.00017865,2]
[358124149,1744756235448,-759.42,0.00017866,2]
[358124150,1744756235457,-759.42,0.00017876,2]
[358124151,1744756235467,-759.42,0.00017876,2]
[358124152,1744756235476,-17364.28587669,0.00017876,2]
[358124153,1744756235485,-759.42,0.00017877,2]
[358124154,1744756235495,-759.42,0.00017878,2]
[358124155,1744756235505,-759.42,0.0001788,2]
[358124156,1744756235514,-759.42,0.0001788,2]
[358124157,1744756235523,-759.42,0.0001788,2]
[358124158,1744756235533,-759.42,0.0001788,2]
[358124159,1744756235543,-1000.0,0.00017885,2]
[358124160,1744756235552,-500.0,0.00017885,2]
[358124161,1744756235562,-512.69613465,0.00017885,2]
[358124162,1744756235572,-566.80960203,0.00017885,2]
[358124163,1744756235582,-500.0,0.00017885,2]
[358124164,1744756235592,-236.58129059,0.00017885,2]
[358124165,1744756235603,-503.03568367,0.00017885,2]
[358124166,1744756235612,-1661.0542,0.00017886,2]
[358124167,1744756235622,-991.1077,0.00017886,2]
[358124168,1744756235631,-856.7983,0.00017886,2]
[358124169,1744756235642,-20332.0308,0.00017886,2]
[358124170,1744756235652,-9697.3601,0.00017886,2]
[358124171,1744756235661,-3686.34767019,0.00017887,2]
[358124172,1744756235674,-3071.33309491,0.00017887,2]
[358124173,1744756235852,167.6,0.00017335,2]
[358124175,1744756237921,-444.07062839,0.00017885,2]
[358124176,1744756237933,-55.92937161,0.00017885,2]
[358124177,1744756237944,-500.0,0.00017885,2]
[358124178,1744756237953,-494.07062839,0.00017887,2]
[358124179,1744756237966,-450.0,0.00017887,2]
[358124180,1744756237978,-8390.5,0.00017887,2]
[358124181,1744756237990,-2613.98379708,0.00017887,2]
[358124182,1744756238172,-1101.3200136,0.00017887,2]
[358124183,1744756238183,-428.7000009,0.00017887,2]
[358124184,1744756238195,-12291.79689493,0.00017887,2]
[358124185,1744756238204,-6269.09520924,0.00017888,2]
[358124186,1744756238224,-8258.95299076,0.00017888,2]
[358124187,1744756238233,-402.47439542,0.00017888,2]
[358124188,1744756238243,-17364.28587669,0.00017888,2]
[358124189,1744756238257,-530.17166417,0.00017889,2]
[358124190,1744756238267,-69392.45637045,0.0001789,2]
[358124191,1744756238278,-402.47439541,0.00017894,2]
[358124192,1744756238288,-4893.2735,0.00017899,2]
[358124193,1744756238298,-31719.8717,0.000179,2]
[358124194,1744756238307,-2500.0,0.000179,2]
[358124195,1744756238316,-152.44052292,0.000179,2]
[358124196,1744756238328,-609.6593,0.000179,2]
[358124197,1744756238338,-15478.23663075,0.000179,2]
[358124198,1744756238347,-223.6793,0.000179,2]
[358124199,1744756238357,-807.5979,0.000179,2]
[358124200,1744756238366,-17364.28587669,0.000179,2]
[358124201,1744756238376,-3965.0,0.000179,2]
[358124202,1744756238386,-266.384,0.000179,2]
[358124203,1744756238396,-1328.0,0.000179,2]
[358124204,1744756238405,-402.47439541,0.000179,2]
[358124205,1744756238415,-195.47118532,0.000179,2]
[358124206,1744756238424,-2047.0,0.000179,2]
[358124207,1744756238434,-12500.0,0.000179,2]
[358124208,1744756238443,-150.0,0.00017922,2]
[358124209,1744756238453,-150.0,0.00017946,2]
[358124210,1744756238462,-150.0,0.00017953,2]
[358124211,1744756238471,-150.0,0.00017953,2]
[358124212,1744756238481,-150.0,0.00017966,2]
[358124213,1744756238490,-150.0,0.00017969,2]
[358124214,1744756238499,-279.47839207,0.00017969,2]
[358124215,1744756238509,-1440.0,0.00017973,2]
[358124216,1744756238518,-500.0,0.00017973,2]
[358124217,1744756238527,-159.64909506,0.00017973,2]
[358124218,1744756238540,-159.64909266,0.00017973,2]
[358124219,1744756238550,-159.64909256,0.00017973,2]
[358124220,1744756238559,-154.6599877,0.00017973,2]
[358124221,1744756238568,-152.64617579,0.00017973,2]
[358124222,1744756238578,-159.64909506,0.00017973,2]
[358124223,1744756238587,-159.64909337,0.00017973,2]
[358124224,1744756238597,-159.64909505,0.00017973,2]
[358124225,1744756238607,-159.64909505,0.00017973,2]
[358124226,1744756238616,-159.64910224,0.00017973,2]
[358124227,1744756238626,-159.64910233,0.00017973,2]
[358124228,1744756238635,-500.90196486,0.00017973,2]
[358124229,1744756238645,-159.64909266,0.00017973,2]
[358124230,1744756238655,-159.64909266,0.00017973,2]
[358124231,1744756238664,-159.64909266,0.00017973,2]
[358124232,1744756238675,-501.33697521,0.00017973,2]
[358124233,1744756238684,-500.0,0.00017973,2]
[358124234,1744756238693,-152.6007422,0.00017973,2]
[358124235,1744756238704,-386.533751,0.00017973,2]
[358124236,1744756238714,-458.49287989,0.00017973,2]
[358124237,1744756238724,-159.94870666,0.00017973,2]
[358124239,1744756238735,-500.0,0.00017973,2]
[358124241,1744756238745,-500.0,0.00017973,2]
[358124243,1744756238755,-150.0,0.00017976,2]
[358124245,1744756238765,-150.0,0.0001798,2]
[358124247,1744756238775,-500.0,0.00017984,2]
[358124249,1744756238784,-173.03931351,0.00017984,2]
[358124251,1744756238794,-500.0,0.00017985,2]
[358124253,1744756238804,-566.56974239,0.00017985,2]
[358124255,1744756238814,-500.0,0.00017985,2]
[358124257,1744756238824,-501.33671019,0.00017985,2]
[358124259,1744756238833,-500.0,0.00017985,2]
[358124261,1744756238843,-503.58120773,0.00017985,2]
[358124263,1744756238853,-500.0,0.00017985,2]
[358124265,1744756238866,-535.11,0.00017985,2]
[358124267,1744756238875,-500.0,0.00017985,2]
[358124269,1744756238884,-500.0,0.00017985,2]
[358124271,1744756238894,-500.0,0.00017985,2]
[358124273,1744756238903,-500.0,0.00017985,2]
[358124275,1744756238912,-500.0,0.00017985,2]
[358124277,1744756238921,-500.0,0.00017985,2]
[358124279,1744756238931,-500.0,0.00017985,2]
[358124281,1744756238940,-522.78,0.00017985,2]
[358124283,1744756238953,-440.81,0.00017985,2]
[358124285,1744756238962,-536.7892467,0.00017985,2]
[358124287,1744756238971,-500.0,0.00017985,2]
[358124289,1744756238981,-500.0,0.00017985,2]
[358124291,1744756238990,-500.0,0.00017985,2]
[358124293,1744756239000,-500.0,0.00017985,2]
[358124295,1744756239009,-500.0,0.00017985,2]
[358124297,1744756239018,-500.0,0.00017985,2]
[358124299,1744756239028,-500.0,0.00017985,2]
[358124301,1744756239038,-500.0,0.00017985,2]
[358124303,1744756239047,-500.0,0.00017985,2]
[358124305,1744756239057,-500.0,0.00017985,2]
[358124307,1744756239067,-500.0,0.00017985,2]
[358124309,1744756239076,-250.39652191,0.00017985,2]
[358124311,1744756239086,-500.0,0.00017985,2]
[358124313,1744756239095,-500.0,0.00017985,2]
[358124315,1744756239106,-500.0,0.00017985,2]
[358124317,1744756239116,-500.0,0.00017985,2]
[358124319,1744756239126,-500.0,0.00017985,2]
[358124321,1744756239135,-500.0,0.00017985,2]
[358124323,1744756239144,-500.0,0.00017985,2]
[358124325,1744756239153,-500.0,0.00017985,2]
[358124326,1744756239163,-500.0,0.00017985,2]
[358124328,1744756239172,-536.11895544,0.00017985,2]
[358124330,1744756239181,-500.0,0.00017985,2]
[358124332,1744756239190,-500.0,0.00017985,2]
[358124334,1744756239199,-500.0,0.00017985,2]
[358124336,1744756239208,-500.0,0.00017985,2]
[358124338,1744756239218,-500.0,0.00017985,2]
[358124340,1744756239228,-500.0,0.00017985,2]
[358124342,1744756239237,-500.0,0.00017985,2]
[358124344,1744756239247,-559.17451178,0.00017985,2]
[358124346,1744756239258,-500.0,0.00017985,2]
[358124347,1744756239267,-500.0,0.00017985,2]
[358124348,1744756239276,-509.30259493,0.00017985,2]
[358124349,1744756239286,-500.0,0.00017985,2]
[358124350,1744756239295,-521.49180357,0.00017985,2]
[358124351,1744756239304,-500.0,0.00017985,2]
[358124352,1744756239316,-500.0,0.00017985,2]
[358124353,1744756239325,-2000.0,0.00017985,2]
[358124354,1744756239335,-500.0,0.00017985,2]
[358124355,1744756239344,-500.0,0.00017985,2]
[358124356,1744756239353,-500.0,0.00017985,2]
[358124357,1744756239363,-500.0,0.00017985,2]
[358124358,1744756239373,-500.0,0.00017985,2]
[358124359,1744756239382,-500.0,0.00017985,2]
[358124360,1744756239391,-526.60570829,0.00017985,2]
[358124361,1744756239400,-500.0,0.00017985,2]
[358124362,1744756239410,-500.0,0.00017985,2]
[358124363,1744756239419,-500.0,0.00017985,2]
[358124364,1744756239428,-500.0,0.00017985,2]
[358124365,1744756239438,-500.0,0.00017985,2]
[358124366,1744756239447,-500.0,0.00017985,2]
[358124367,1744756239457,-500.0,0.00017985,2]
[358124368,1744756239467,-513.44901914,0.00017985,2]
[358124369,1744756239476,-500.0,0.00017985,2]
[358124370,1744756239485,-619.88318437,0.00017985,2]
[358124371,1744756239495,-366.38276934,0.00017985,2]
[358124372,1744756239504,-506.33092231,0.00017985,2]
[358124373,1744756239513,-157.10594848,0.00017985,2]
[358124374,1744756239673,-500.0,0.00017985,2]
[358124375,1744756239684,-500.0,0.00017985,2]
[358124376,1744756239694,-237.86,0.00017985,2]
[358124377,1744756239705,-500.0,0.00017985,2]
[358124378,1744756239714,-509.46110764,0.00017985,2]
[358124379,1744756239724,-500.0,0.00017985,2]
[358124380,1744756239734,-500.0,0.00017985,2]
[358124381,1744756239743,-7800.5774293,0.00017986,2]
[358124382,1744756239753,-339.4870427,0.00017986,2]
[358124383,1744756239763,-4888.9767532,0.00017986,2]
[358124384,1744756239771,-51425.3005708,0.00017986,2]
[358124385,1744756239780,-663.7014242,0.00017986,2]
[358124386,1744756239789,-1377.1338166,0.00017986,2]
[358124387,1744756239798,-7577.454159,0.00017986,2]
[358124388,1744756239808,-507.60310901,0.00017987,2]
[358124389,1744756239817,-500.0,0.00017987,2]
[358124390,1744756239826,-502.40774967,0.00017987,2]
[358124391,1744756239836,-500.0,0.00017987,2]
[358124392,1744756239845,-594.30457585,0.00017987,2]
[358124393,1744756239857,-500.0,0.00017987,2]
[358124394,1744756239867,-500.0,0.00017987,2]
[358124395,1744756239876,-563.84546388,0.00017987,2]
[358124396,1744756239886,-500.0,0.00017987,2]
[358124397,1744756239895,-500.0,0.00017987,2]
[358124398,1744756239905,-500.0,0.00017987,2]
[358124399,1744756239915,-500.0,0.00017987,2]
[358124400,1744756239924,-500.0,0.00017987,2]
[358124401,1744756239933,-500.0,0.00017987,2]
[358124402,1744756239942,-567.72014274,0.00017987,2]
[358124403,1744756239951,-507.11575553,0.00017987,2]
[358124404,1744756239961,-500.0,0.00017987,2]
[358124405,1744756239970,-500.0,0.00017987,2]
[358124406,1744756239979,-500.0,0.00017987,2]
[358124407,1744756239988,-524.93817119,0.00017987,2]
[358124408,1744756239997,-500.0,0.00017987,2]
[358124409,1744756240007,-500.0,0.00017987,2]
[358124410,1744756240016,-503.93402038,0.00017987,2]
[358124411,1744756240025,-500.0,0.00017987,2]
[358124412,1744756240035,-500.0,0.00017987,2]
[358124413,1744756240044,-500.0,0.00017987,2]
[358124414,1744756240053,-500.0,0.00017987,2]
[358124415,1744756240063,-614.12,0.00017987,2]
[358124416,1744756240073,-500.0,0.00017987,2]
[358124417,1744756240082,-500.0,0.00017987,2]
[358124418,1744756240091,-500.0,0.00017987,2]
[358124419,1744756240101,-500.0,0.00017987,2]
[358124420,1744756240112,-420.46055283,0.00017987,2]
[358124421,1744756240121,-583.02074856,0.00017987,2]
[358124422,1744756240131,-500.0,0.00017987,2]
[358124423,1744756240140,-500.0,0.00017987,2]
[358124424,1744756240150,-500.0,0.00017987,2]
[358124425,1744756240159,-500.0,0.00017987,2]
[358124426,1744756240169,-525.20981956,0.00017987,2]
[358124427,1744756240178,-526.37565954,0.00017987,2]
[358124428,1744756240187,-500.0,0.00017987,2]
[358124429,1744756240196,-500.0,0.00017987,2]
[358124430,1744756240205,-500.0,0.00017987,2]
[358124431,1744756240214,-500.0,0.00017987,2]
[358124432,1744756240224,-500.0,0.00017987,2]
[358124433,1744756240234,-500.0,0.00017987,2]
[358124434,1744756240243,-500.0,0.00017987,2]
[358124435,1744756240256,-500.0,0.00017987,2]
[358124436,1744756240266,-500.0,0.00017987,2]
[358124437,1744756240275,-501.38226077,0.00017987,2]
[358124438,1744756240284,-565.19,0.00017987,2]
[358124439,1744756240294,-505.6159079,0.00017987,2]
[358124440,1744756240303,-500.0,0.00017987,2]
[358124441,1744756240312,-500.0,0.00017987,2]
[358124442,1744756240323,-500.0,0.00017987,2]
[358124443,1744756240333,-2000.0,0.00017987,2]
[358124444,1744756240342,-559.39204225,0.00017987,2]
[358124445,1744756240351,-500.0,0.00017987,2]
[358124446,1744756240362,-500.0,0.00017987,2]
[358124447,1744756240372,-500.0,0.00017987,2]
[358124448,1744756240382,-500.0,0.00017987,2]
[358124449,1744756240392,-500.0,0.00017987,2]
[358124451,1744756240401,-500.0,0.00017987,2]
[358124453,1744756240411,-500.0,0.00017987,2]
[358124454,1744756240420,-500.0,0.00017987,2]
[358124455,1744756240429,-500.0,0.00017987,2]
[358124456,1744756240438,-500.0,0.00017987,2]
[358124457,1744756240447,-500.0,0.00017987,2]
[358124458,1744756240457,-500.0,0.00017987,2]
[358124459,1744756240466,-500.0,0.00017987,2]
[358124460,1744756240475,-500.0,0.00017987,2]
[358124461,1744756240485,-500.0,0.00017987,2]
[358124462,1744756240494,-500.0,0.00017987,2]
[358124463,1744756240503,-297.53659475,0.00017987,2]
[358124464,1744756240512,-500.0,0.00017987,2]
[358124465,1744756240521,-500.0,0.00017987,2]
[358124466,1744756240530,-500.0,0.00017987,2]
[358124467,1744756240540,-500.0,0.00017987,2]
[358124468,1744756240549,-500.0,0.00017987,2]
[358124469,1744756240559,-500.0,0.00017987,2]
[358124470,1744756240568,-500.0,0.00017987,2]
[358124471,1744756240577,-500.0,0.00017987,2]
[358124472,1744756240587,-513.08037922,0.00017987,2]
[358124473,1744756240596,-500.0,0.00017987,2]
[358124474,1744756240606,-500.0,0.00017987,2]
[358124475,1744756240615,-500.0,0.00017987,2]
[358124476,1744756240625,-502.09640607,0.00017987,2]
[358124477,1744756240634,-300.0,0.00017987,2]
[358124478,1744756240643,-500.0,0.00017987,2]
[358124479,1744756240652,-500.0,0.00017987,2]
[358124480,1744756240661,-500.0,0.00017987,2]
[358124481,1744756240671,-407.22962847,0.00017987,2]
[358124482,1744756240680,-500.0,0.00017987,2]
[358124483,1744756240690,-521.22418692,0.00017987,2]
[358124484,1744756240699,-500.0,0.00017987,2]
[358124485,1744756240709,-500.0,0.00017987,2]
[358124486,1744756240718,-500.0,0.00017987,2]
[358124487,1744756240727,-500.0,0.00017987,2]
[358124488,1744756240737,-500.90406469,0.00017987,2]
[358124489,1744756240746,-500.0,0.00017987,2]
[358124490,1744756240755,-398.11181292,0.00017987,2]
[358124491,1744756240764,-500.0,0.00017987,2]
[358124492,1744756240774,-500.0,0.00017987,2]
[358124493,1744756240783,-500.0,0.00017987,2]
[358124494,1744756240793,-500.0,0.00017987,2]